fUSD/lending_fUSD_20240921
["ID","MTS","AMOUNT","RATE_DAILY","PERIOD"]
[338808211,1726923044521,-783.544154,0.000149,2]
[338808213,1726923044530,-152.0,0.000149,3]
[338808215,1726923044540,-638.56,0.000149,31]
[338808217,1726923044551,-638.56,0.000149,31]
[338808219,1726923044562,-638.56,0.000149,31]
[338808221,1726923044571,-638.56,0.000149,31]
[338808223,1726923044582,-638.56,0.000149,31]
[338808225,1726923044591,-638.56,0.000149,31]
[338808227,1726923044601,-638.56,0.000149,31]
[338808229,1726923044612,-638.56,0.000149,31]
[338808231,1726923044624,-638.56,0.000149,31]
[338808233,1726923044634,-638.56,0.000149,31]
[338808235,1726923044644,-638.56,0.000149,31]
[338808237,1726923044654,-638.56,0.000149,31]
[338808239,1726923044664,-638.56,0.000149,31]
[338808241,1726923044673,-638.56,0.000149,31]
[338808243,1726923044682,-638.56,0.000149,31]
[338808245,1726923044692,-638.56,0.000149,31]
[338808246,1726923044701,-2147.90802228,0.000149,2]
[338808247,1726923044710,-150.0,0.00014912,2]
[338808248,1726923044720,-150.0,0.00014916,2]
[338808249,1726923044729,-150.0,0.00014919,2]
[338808250,1726923044738,-150.0,0.0001492,2]
[338808251,1726923044748,-1000.0,0.00014925,2]
[338808252,1726923044757,-462.0955,0.00014925,2]
[338808253,1726923044767,-1500.0,0.00014926,2]
[338808254,1726923044776,-150.0,0.00014926,2]
[338808255,1726923044786,-201.0,0.0001493,2]
[338808256,1726923044795,-201.0,0.0001493,2]
[338808257,1726923044804,-150.0,0.00014934,2]
[338808258,1726923044814,-150.0,0.00014936,2]
[338808259,1726923044823,-150.0,0.00014944,2]
[338808261,1726923044832,-150.0,0.00014956,2]
[338808263,1726923044842,-1015.37368057,0.00014957,2]
[338808264,1726923044852,-150.0,0.00014971,2]
[338808267,1726923044861,-203.54534084,0.00014973,2]
[338808268,1726923044871,-446.7066608,0.00014973,2]
[338808271,1726923044885,-53.2933392,0.00014973,2]
[338808272,1726923044895,-216.366417,0.00014974,2]
[338808274,1726923044904,-150.0,0.00014974,2]
[338808276,1726923044914,-150.0,0.00014977,2]
[338808278,1726923044923,-500.0,0.00014989,2]
[338808281,1726923044933,-144.6802438,0.00014989,2]
[338808283,1726923044945,-355.3197562,0.00014989,2]
[338808284,1726923044955,-500.0,0.00014989,2]
[338808286,1726923044965,-500.0,0.00014989,2]
[338808288,1726923044975,-204.0,0.0001499,2]
[338808290,1726923044985,-201.0,0.0001499,2]
[338808292,1726923044994,-204.0,0.0001499,2]
[338808294,1726923045004,-201.0,0.0001499,2]
[338808296,1726923045013,-3063.9540302,0.0001499,2]
[338808298,1726923045023,-2490.7134724,0.0001499,2]
[338808300,1726923045034,-1917.4729146,0.0001499,2]
[338808302,1726923045043,-1344.2323568,0.0001499,2]
[338808304,1726923045053,-770.9917991,0.0001499,2]
[338808306,1726923045063,-298.0482552,0.0001499,2]
[338808308,1726923045073,-298.0482552,0.0001499,2]
[338808310,1726923045082,-298.0482552,0.0001499,2]
[338808312,1726923045092,-298.0482552,0.0001499,2]
[338808314,1726923045102,-298.0482552,0.0001499,2]
[338808316,1726923045112,-615.3805239,0.0001499,2]
[338808318,1726923045122,-500.0442311,0.0001499,2]
[338808320,1726923045132,-384.7079383,0.0001499,2]
[338808322,1726923045141,-269.3716455,0.0001499,2]
[338808325,1726923045151,-154.0353526,0.0001499,2]
[338808327,1726923045160,-4733.59970013,0.0001499,2]
[338808328,1726923045170,-150.0,0.00014992,2]
[338808330,1726923045180,-730.7168167,0.00014993,2]
[338808332,1726923045189,-150.0,0.00014993,2]
[338808335,1726923045198,-12150.3143204,0.00014998,5]
[338808337,1726923045208,-500.0,0.00014998,2]
[338808339,1726923045217,-500.0,0.00014999,2]
[338808341,1726923045226,-500.0,0.00014999,2]
[338808343,1726923045236,-500.0,0.00014999,2]
[338808345,1726923045245,-500.0,0.00014999,2]
[338808346,1726923045255,-500.0,0.00014999,2]
[338808349,1726923045264,-500.0,0.00014999,2]
[338808350,1726923045274,-500.0,0.00014999,2]
[338808352,1726923045284,-500.0,0.00014999,2]
[338808354,1726923045294,-500.0,0.00014999,2]
[338808356,1726923045303,-500.0,0.00014999,2]
[338808358,1726923045313,-500.0,0.00014999,2]
[338808360,1726923045322,-500.0,0.00014999,2]
[338808362,1726923045331,-500.0,0.00014999,2]
[338808364,1726923045341,-500.0,0.00014999,2]
[338808366,1726923045350,-500.0,0.00014999,2]
[338808368,1726923045359,-500.0,0.00014999,2]
[338808370,1726923045369,-208.89,0.00014999,2]
[338808372,1726923045378,-1211.84,0.00014999,2]
[338808374,1726923045387,-1211.84,0.00014999,2]
[338808376,1726923045397,-1211.84,0.00014999,2]
[338808379,1726923045409,-1211.84,0.00014999,2]
[338808381,1726923045421,-1211.84,0.00014999,2]
[338808383,1726923045430,-1211.84,0.00014999,2]
[338808385,1726923045439,-1211.84,0.00014999,2]
[338808387,1726923045448,-1211.84,0.00014999,2]
[338808389,1726923045458,-1211.84,0.00014999,2]
[338808391,1726923045468,-1211.84,0.00014999,2]
[338808393,1726923045477,-1211.84,0.00014999,2]
[338808395,1726923045487,-1211.84,0.00014999,2]
[338808397,1726923045498,-1211.84,0.00014999,2]
[338808399,1726923045507,-1211.84,0.00014999,2]
[338808401,1726923045517,-1211.84,0.00014999,2]
[338808403,1726923045535,-1211.84,0.00014999,2]
[338808405,1726923045545,-1211.84,0.00014999,2]
[338808407,1726923045556,-1211.84,0.00014999,2]
[338808410,1726923045566,-1211.84,0.00014999,2]
[338808411,1726923045576,-1211.84,0.00014999,2]
[338808414,1726923045590,-500.0,0.00014999,2]
[338808416,1726923045601,-500.0,0.00014999,2]
[338808418,1726923045611,-500.0,0.00014999,2]
[338808420,1726923045620,-500.0,0.00014999,2]
[338808422,1726923045629,-500.0,0.00014999,2]
[338808424,1726923045638,-500.0,0.00014999,2]
[338808426,1726923045647,-500.0,0.00014999,2]
[338808428,1726923045656,-500.0,0.00014999,2]
[338808430,1726923045665,-639.00000001,0.00014999,2]
[338808432,1726923045675,-474.91456684,0.00014999,2]
[338808434,1726923045684,-709.59,0.00014999,2]
[338808436,1726923045693,-709.59,0.00014999,2]
[338808438,1726923045702,-709.59,0.00014999,2]
[338808440,1726923045712,-709.59,0.00014999,2]
[338808442,1726923045721,-709.59,0.00014999,2]
[338808444,1726923045730,-709.59,0.00014999,2]
[338808446,1726923045743,-709.59,0.00014999,2]
[338808448,1726923045752,-709.59,0.00014999,2]
[338808450,1726923045764,-709.59,0.00014999,2]
[338808452,1726923045774,-709.59,0.00014999,2]
[338808454,1726923045783,-709.59,0.00014999,2]
[338808457,1726923045794,-709.59,0.00014999,2]
[338808459,1726923045805,-709.59,0.00014999,2]
[338808461,1726923045814,-709.59,0.00014999,2]
[338808463,1726923045824,-709.59,0.00014999,2]
[338808465,1726923045835,-709.59,0.00014999,2]
[338808467,1726923045847,-709.59,0.00014999,2]
[338808469,1726923045858,-709.59,0.00014999,2]
[338808471,1726923045868,-709.59,0.00014999,2]
[338808473,1726923045878,-709.75,0.00014999,2]
[338808475,1726923045888,-854.1,0.00014999,2]
[338808477,1726923045898,-854.1,0.00014999,2]
[338808479,1726923045908,-854.1,0.00014999,2]
[338808481,1726923045919,-854.1,0.00014999,2]
[338808483,1726923045928,-854.1,0.00014999,2]
[338808485,1726923045937,-854.1,0.00014999,2]
[338808487,1726923045947,-854.1,0.00014999,2]
[338808490,1726923045957,-854.1,0.00014999,2]
[338808491,1726923045966,-854.1,0.00014999,2]
[338808493,1726923045976,-854.1,0.00014999,2]
[338808495,1726923045985,-854.1,0.00014999,2]
[338808497,1726923045995,-854.1,0.00014999,2]
[338808499,1726923046004,-291.22679018,0.00014999,2]
[338808514,1726923046140,-562.87320982,0.00014999,2]
[338808516,1726923046149,-854.1,0.00014999,2]
[338808518,1726923046161,-90.25179017,0.00014999,2]
[338808521,1726923046180,-508.16035859,0.00014973,2]
[338808523,1726923046190,-763.84820983,0.00014999,2]
[338808524,1726923046199,-235.49143158,0.00014999,2]
[338810387,1726923072067,500.0,0.00011164,2]
[338810391,1726923155874,500.0,0.00011164,2]
[338810392,1726923179491,221.34,0.00011953,2]
[338810400,1726923756494,210.27,0.00011604,2]
[338810406,1726924019580,656.34,0.0001203,10]
[338810413,1726924232003,-393.3952172,0.00013084,2]
[338810414,1726924232060,-606.6047828,0.00013084,2]
[338810415,1726924232070,-155.34,0.00013537,2]
[338810416,1726924232079,-998.58,0.000136,2]
[338810417,1726924232089,-250.0,0.00013644,2]
[338810418,1726924232098,-509.98,0.00013699,2]
[338810419,1726924232107,-150.0,0.00013699,2]
[338810420,1726924232117,-150.0,0.000137,2]
[338810421,1726924232126,-300.0,0.000137,2]
[338810422,1726924232135,-519.1525443,0.00013701,2]
[338810423,1726924232150,-1706.98,0.00013701,2]
[338810424,1726924232161,-960.92161359,0.00013701,2]
[338810425,1726924232171,-2813.258008,0.00013701,2]
[338810426,1726924232187,-714.46336982,0.00013701,2]
[338810427,1726924232197,-881.87726907,0.00013701,2]
[338810428,1726924232236,-1335.27392991,0.00013701,2]
[338810429,1726924232291,-814.99724662,0.00013701,2]
[338810436,1726924238169,-1385.23372123,0.00013701,2]
[338810437,1726924238181,-1677.23111753,0.00013701,2]
[338810438,1726924238196,-5000.0,0.00013701,2]
[338810439,1726924238209,-1595.48310882,0.00013701,2]
[338810440,1726924238221,-8928.78405659,0.00013701,2]
[338810441,1726924238233,-4294.94431452,0.00013701,2]
[338810442,1726924238243,-151.13697109,0.00013701,2]
[338810443,1726924238255,-2183.25302891,0.00013701,2]
[338810444,1726924238264,-526.69192063,0.00013734,2]
[338810445,1726924238275,-73.30807937,0.00013734,2]
[338810446,1726924238285,-5124.26288938,0.00013734,2]
[338810447,1726924238295,-158.27711062,0.00013734,2]
[338810448,1726924238305,-1818.89258453,0.00013807,2]
[338810449,1726924238314,-499.99,0.00013807,2]
[338810450,1726924238323,-830.39,0.00013807,2]
[338810451,1726924238332,-410.17,0.00013811,2]
[338810452,1726924238341,-865.54090485,0.00013811,2]
[338810453,1726924238352,-134.44909515,0.00013811,2]
[338810454,1726924238363,-173.81,0.00013825,2]
[338810455,1726924238372,-210.27,0.00013868,2]
[338810456,1726924238381,-400.0,0.00013891,2]
[338810457,1726924238391,-500.0,0.00013904,2]
[338810458,1726924238400,-151.77,0.00013918,30]
[338810459,1726924238409,-178.34,0.00014054,2]
[338810460,1726924238419,-852.33,0.00014055,2]
[338810461,1726924238428,-1518.55,0.00014055,2]
[338810462,1726924238437,-150.0,0.00014059,2]
[338810463,1726924238446,-167.07,0.00014134,2]
[338810464,1726924238455,-913.62,0.00014192,2]
[338810465,1726924238465,-301.96,0.00014192,2]
[338810466,1726924238474,-357.37,0.00014192,2]
[338810467,1726924238484,-301.16,0.00014192,2]
[338810468,1726924238493,-301.41,0.00014192,2]
[338810469,1726924238503,-154.12,0.00014192,2]
[338810470,1726924238512,-350.92,0.00014192,2]
[338810471,1726924238521,-548.13,0.000142,2]
[338810472,1726924238530,-199.722846,0.00014261,2]
[338810473,1726924238539,-167.14,0.0001432,2]
[338810474,1726924238548,-509.98,0.00014384,2]
[338810475,1726924238557,-150.0,0.0001442,2]
[338810476,1726924238566,-157.22002002,0.0001442,2]
[338810477,1726924238575,-1018.42630452,0.0001442,2]
[338810478,1726924238584,-509.5205,0.0001442,2]
[338810479,1726924238593,-1018.42630452,0.00014473,2]
[338810480,1726924238603,-150.0,0.00014477,2]
[338810481,1726924238611,-5252.397,0.00014477,2]
[338810482,1726924238621,-1083.515,0.00014477,2]
[338810483,1726924238630,-157.22001999,0.000145,2]
[338810484,1726924238639,-410.17,0.00014502,2]
[338810485,1726924238648,-500.0,0.0001452,2]
[338810486,1726924238657,-500.0,0.0001452,2]
[338810487,1726924238668,-500.0,0.0001452,2]
[338810488,1726924238677,-500.0,0.0001452,2]
[338810489,1726924238686,-500.0,0.0001452,2]
[338810490,1726924238695,-500.0,0.0001452,2]
[338810491,1726924238704,-500.0,0.0001452,2]
[338810492,1726924238714,-500.0,0.0001452,2]
[338810493,1726924238723,-71.00044903,0.0001452,2]
[338810494,1726924238735,-428.99955097,0.0001452,2]
[338810495,1726924238744,-269.83,0.0001452,2]
[338810496,1726924238753,-146.745275,0.0001452,2]
[338810497,1726924238764,-353.254725,0.0001452,2]
[338810498,1726924238774,-500.0,0.0001452,2]
[338810499,1726924238783,-337.57,0.0001452,2]
[338810500,1726924238792,-500.0,0.0001452,2]
[338810502,1726924238802,-434.77,0.0001452,2]
[338810504,1726924238811,-530.56,0.0001452,2]
[338810506,1726924238820,-500.0,0.0001452,2]
[338810507,1726924238830,-500.0,0.0001452,2]
[338810509,1726924238839,-318.345275,0.0001452,2]
[338810512,1726924238851,-181.654725,0.0001452,2]
[338810513,1726924238861,-267.94197231,0.0001452,2]
[338810516,1726924238873,-143.06802769,0.0001452,2]
[338810518,1726924238883,-500.0,0.0001452,2]
[338810520,1726924238892,-54.05083912,0.0001452,2]
[338810522,1726924238903,-445.94916088,0.0001452,2]
[338810524,1726924238913,-213.01,0.0001452,2]
[338810526,1726924238923,-500.0,0.0001452,2]
[338810528,1726924238933,-476.4,0.0001452,2]
[338810530,1726924238943,-500.0,0.0001452,2]
[338810532,1726924238951,-500.0,0.0001452,2]
[338810534,1726924238962,-371.08135758,0.0001452,2]
[338810536,1726924238974,-128.91864242,0.0001452,2]
[338810538,1726924238984,-500.0,0.0001452,2]
[338810540,1726924238993,-500.0,0.0001452,2]
[338810542,1726924239003,-438.15,0.0001452,2]
[338810544,1726924239013,-500.0,0.0001452,2]
[338810546,1726924239023,-500.0,0.0001452,2]
[338810549,1726924239034,-500.0,0.0001452,2]
[338810551,1726924239044,-500.0,0.0001452,2]
[338810553,1726924239055,-553.64,0.0001452,2]
[338810555,1726924239064,-500.0,0.0001452,2]
[338810557,1726924239073,-500.0,0.0001452,2]
[338810559,1726924239083,-449.81,0.0001452,2]
[338810561,1726924239092,-500.0,0.0001452,2]
[338810563,1726924239102,-174.33,0.0001452,2]
[338810565,1726924239111,-500.0,0.0001452,2]
[338810566,1726924239120,-500.0,0.0001452,2]
[338810568,1726924239130,-197.95597358,0.0001452,2]
[338810571,1726924239143,-302.04402642,0.0001452,2]
[338810572,1726924239154,-323.35,0.0001452,2]
[338810574,1726924239163,-500.0,0.0001452,2]
[338810576,1726924239173,-467.04,0.0001452,2]
[338810578,1726924239182,-500.0,0.0001452,2]
[338810580,1726924239192,-18.82113167,0.0001452,2]
[338810583,1726924239204,-356.55886833,0.0001452,2]
[338810584,1726924239213,-147.9052959,0.0001452,2]
[338810587,1726924239225,-491.7047041,0.0001452,2]
[338810588,1726924239235,-410.44792908,0.0001452,2]
[338810590,1726924239247,-89.55207092,0.0001452,2]
[338810592,1726924239256,-500.0,0.0001452,2]
[338810594,1726924239266,-500.0,0.0001452,2]
[338810596,1726924239275,-381.32701409,0.0001452,2]
[338810599,1726924239287,-118.67298591,0.0001452,2]
[338810601,1726924239297,-226.28,0.0001452,2]
[338810603,1726924239306,-500.0,0.0001452,2]
[338810605,1726924239316,-500.0,0.0001452,2]
[338810607,1726924239325,-500.0,0.0001452,2]
[338810609,1726924239335,-310.37700052,0.0001452,2]
[338810611,1726924239344,-409.42115007,0.0001452,2]
[338810613,1726924239356,-90.57884993,0.0001452,2]
[338810615,1726924239365,-500.0,0.0001452,2]
[338810617,1726924239375,-500.0,0.0001452,2]
[338810618,1726924239384,-500.0,0.0001452,2]
[338810620,1726924239394,-289.21188725,0.0001452,2]
[338810623,1726924239405,-110.78811275,0.0001452,2]
[338810625,1726924239415,-500.0,0.0001452,2]
[338810627,1726924239425,-109.83480541,0.0001452,2]
[338810629,1726924239440,-409.10386069,0.0001452,2]
[338810631,1726924239450,-500.0,0.0001452,2]
[338810633,1726924239459,-500.0,0.0001452,2]
[338810635,1726924239469,-500.0,0.0001452,2]
[338810637,1726924239479,-500.0,0.0001452,2]
[338810639,1726924239489,-500.0,0.0001452,2]
[338810641,1726924239498,-500.0,0.0001452,2]
[338810643,1726924239509,-500.0,0.0001452,2]
[338810645,1726924239518,-404.24,0.0001452,2]
[338810647,1726924239527,-500.0,0.0001452,2]
[338810649,1726924239537,-500.0,0.0001452,2]
[338810651,1726924239547,-500.0,0.0001452,2]
[338810653,1726924239556,-500.0,0.0001452,2]
[338810655,1726924239566,-500.0,0.0001452,2]
[338810657,1726924239575,-186.49,0.0001452,2]
[338810659,1726924239585,-500.0,0.0001452,2]
[338810661,1726924239594,-500.0,0.0001452,2]
[338810663,1726924239604,-500.0,0.0001452,2]
[338810665,1726924239613,-500.0,0.0001452,2]
[338810667,1726924239623,-500.0,0.0001452,2]
[338810669,1726924239632,-500.0,0.0001452,2]
[338810671,1726924239642,-500.0,0.0001452,2]
[338810673,1726924239651,-398.80323927,0.0001452,2]
[338810675,1726924239663,-101.19676073,0.0001452,2]
[338810677,1726924239673,-500.0,0.0001452,2]
[338810679,1726924239682,-500.0,0.0001452,2]
[338810681,1726924239692,-294.58,0.0001452,2]
[338810683,1726924239701,-500.0,0.0001452,2]
[338810685,1726924239710,-500.0,0.0001452,2]
[338810687,1726924239719,-500.0,0.0001452,2]
[338810689,1726924239728,-500.0,0.0001452,2]
[338810691,1726924239738,-602.54,0.0001452,2]
[338810693,1726924239747,-500.0,0.0001452,2]
[338810695,1726924239757,-500.0,0.0001452,2]
[338810697,1726924239766,-405.02617407,0.0001452,2]
[338810700,1726924239779,-94.97382593,0.0001452,2]
[338810702,1726924239789,-500.0,0.0001452,2]
[338810704,1726924239799,-420.05,0.0001452,2]
[338810706,1726924239808,-471.48519744,0.0001452,2]
[338810708,1726924239821,-28.51480256,0.0001452,2]
[338810710,1726924239831,-413.84,0.0001452,2]
[338810712,1726924239840,-500.0,0.0001452,2]
[338810714,1726924239851,-252.19,0.0001452,2]
[338810716,1726924239862,-500.0,0.0001452,2]
[338810718,1726924239871,-500.0,0.0001452,2]
[338810720,1726924239881,-500.0,0.0001452,2]
[338810722,1726924239892,-500.0,0.0001452,2]
[338810724,1726924239902,-500.0,0.0001452,2]
[338810726,1726924239912,-500.0,0.0001452,2]
[338810729,1726924239923,-424.98,0.0001452,2]
[338810731,1726924239932,-500.0,0.0001452,2]
[338810733,1726924239942,-500.0,0.0001452,2]
[338810735,1726924239951,-500.0,0.0001452,2]
[338810737,1726924239964,-500.0,0.0001452,2]
[338810739,1726924239973,-500.0,0.0001452,2]
[338810741,1726924239983,-500.0,0.0001452,2]
[338810743,1726924239992,-500.0,0.0001452,2]
[338810745,1726924240001,-500.0,0.0001452,2]
[338810747,1726924240010,-500.0,0.0001452,2]
[338810749,1726924240020,-500.0,0.0001452,2]
[338810751,1726924240029,-500.0,0.0001452,2]
[338810753,1726924240038,-500.0,0.0001452,2]
[338810755,1726924240047,-500.0,0.0001452,2]
[338810757,1726924240056,-500.0,0.0001452,2]
[338810759,1726924240066,-500.0,0.0001452,2]
[338810761,1726924240075,-335.21,0.0001452,2]
[338810763,1726924240084,-500.0,0.0001452,2]
[338810765,1726924240093,-500.0,0.0001452,2]
[338810767,1726924240102,-256.96,0.0001452,2]
[338810769,1726924240111,-500.0,0.0001452,2]
[338810770,1726924240121,-198.99,0.0001452,2]
[338810773,1726924240131,-500.0,0.0001452,2]
[338810774,1726924240140,-500.0,0.0001452,2]
[338810776,1726924240151,-250.42,0.0001452,2]
[338810778,1726924240160,-500.0,0.0001452,2]
[338810780,1726924240171,-500.0,0.0001452,2]
[338810782,1726924240180,-500.0,0.0001452,2]
[338810784,1726924240192,-338.38095253,0.0001452,2]
[338810788,1726924240212,-161.61904747,0.0001452,2]
[338810790,1726924240222,-423.79916077,0.0001452,2]
[338810792,1726924240234,-76.20083923,0.0001452,2]
[338810794,1726924240243,-317.9269819,0.0001452,2]
[338810796,1726924240256,-182.0730181,0.0001452,2]
[338810798,1726924240265,-273.18767641,0.0001452,2]
[338810800,1726924240277,-212.45232359,0.0001452,2]
[338810803,1726924240287,-500.0,0.0001452,2]
[338810805,1726924240297,-500.0,0.0001452,2]
[338810807,1726924240307,-500.0,0.0001452,2]
[338810809,1726924240316,-500.0,0.0001452,2]
[338810811,1726924240326,-500.0,0.0001452,2]
[338810813,1726924240336,-500.0,0.0001452,2]
[338810815,1726924240346,-500.0,0.0001452,2]
[338810817,1726924240355,-157.05,0.0001452,2]
[338810819,1726924240366,-500.0,0.0001452,2]
[338810821,1726924240375,-500.0,0.0001452,2]
[338810823,1726924240384,-500.0,0.0001452,2]
[338810825,1726924240395,-414.5,0.0001452,2]
[338810827,1726924240405,-500.0,0.0001452,2]
[338810829,1726924240416,-500.0,0.0001452,2]
[338810831,1726924240426,-500.0,0.0001452,2]
[338810833,1726924240436,-500.0,0.0001452,2]
[338810835,1726924240445,-601.76,0.0001452,2]
[338810837,1726924240455,-500.0,0.0001452,2]
[338810839,1726924240464,-500.0,0.0001452,2]
[338810841,1726924240474,-500.0,0.0001452,2]
[338810843,1726924240483,-490.11,0.0001452,2]
[338810845,1726924240492,-500.0,0.0001452,2]
[338810847,1726924240502,-330.58,0.0001452,2]
[338810850,1726924240511,-500.0,0.0001452,2]
[338810852,1726924240521,-500.0,0.0001452,2]
[338810853,1726924240530,-500.0,0.0001452,2]
[338810855,1726924240538,-500.0,0.0001452,2]
[338810858,1726924240548,-500.0,0.0001452,2]
[338810859,1726924240557,-500.0,0.0001452,2]
[338810861,1726924240566,-500.0,0.0001452,2]
[338810863,1726924240575,-339.21,0.0001452,2]
[338810866,1726924240584,-500.0,0.0001452,2]
[338810868,1726924240595,-500.0,0.0001452,2]
[338810870,1726924240605,-500.0,0.0001452,2]
[338810872,1726924240614,-500.0,0.0001452,2]
[338810874,1726924240624,-500.0,0.0001452,2]
[338810876,1726924240634,-500.0,0.0001452,2]
[338810878,1726924240644,-500.0,0.0001452,2]
[338810880,1726924240655,-500.0,0.0001452,2]
[338810882,1726924240667,-500.0,0.0001452,2]
[338810885,1726924240677,-38.51381519,0.0001452,2]
[338810887,1726924240690,-461.48618481,0.0001452,2]
[338810888,1726924240700,-500.0,0.0001452,2]
[338810889,1726924240711,-499.80383381,0.0001452,2]
[338810890,1726924240721,-500.0,0.0001452,2]
[338810891,1726924240730,-499.98789667,0.0001452,2]
[338810892,1726924240742,-600.57991977,0.0001452,2]
[338810893,1726924240752,-500.0,0.0001452,2]
[338810894,1726924240762,-500.0,0.0001452,2]
[338810895,1726924240773,-500.0,0.0001452,2]
[338810896,1726924240785,-500.0,0.0001452,2]
[338810897,1726924240797,-615.21,0.0001452,2]
[338810898,1726924240807,-150.94923608,0.0001452,2]
[338810899,1726924240816,-500.0,0.0001452,2]
[338810900,1726924240828,-525.28025164,0.0001452,2]
[338810901,1726924240839,-500.0,0.0001452,2]
[338810902,1726924240851,-388.26669587,0.0001452,2]
[338810903,1726924240863,-500.0,0.0001452,2]
[338810905,1726924240872,-500.0,0.0001452,2]
[338810907,1726924240882,-271.45305249,0.0001452,2]
[338810909,1726924240892,-993.35849249,0.00014527,2]
[338810912,1726924240904,-25.06781203,0.00014527,2]
[338810913,1726924240913,-157.22001999,0.0001458,2]
[338810915,1726924240923,-144.35646295,0.0001458,2]
[338810918,1726924240935,-448.7075297,0.0001458,2]
[338810920,1726924240949,-425.36231187,0.0001458,2]
[338810922,1726924240960,-226.635,0.00014606,2]
[338810924,1726924240970,-322.16476256,0.00014606,2]
[338810927,1726924240984,-259.63523744,0.00014606,2]
[338810928,1726924240993,-139.45399368,0.00014606,2]
[338810931,1726924241005,-127.05500632,0.00014606,2]
[338810933,1726924241016,-158.383,0.00014606,2]
[338810935,1726924241025,-1018.42630452,0.00014633,2]
[338810937,1726924241035,-157.22001999,0.0001466,2]
[338810939,1726924241045,-1018.42630452,0.00014687,2]
[338810940,1726924241054,-620.48936465,0.000147,2]
[338810943,1726924241067,-379.51063535,0.000147,2]
[338810945,1726924241076,-346.71486509,0.000147,2]
[338810947,1726924241087,-816.10873491,0.000147,2]
[338810949,1726924241096,-150.0,0.00014726,2]
[338810951,1726924241106,-150.0,0.00014727,2]
[338810953,1726924241116,-150.0,0.00014728,2]
[338810955,1726924241126,-150.0,0.00014728,2]
[338810956,1726924241136,-150.0,0.00014729,2]
[338810959,1726924241147,-150.0,0.00014731,2]
[338810960,1726924241156,-150.0,0.00014734,2]
[338810962,1726924241166,-150.0,0.00014736,2]
[338810965,1726924241175,-150.0,0.00014738,2]
[338810967,1726924241185,-150.0,0.00014739,2]
[338810969,1726924241195,-157.22001999,0.0001474,2]
[338810971,1726924241205,-1018.42630452,0.0001474,2]
[338810973,1726924241215,-150.0,0.00014741,2]
[338810975,1726924241224,-150.0,0.00014747,2]
[338810977,1726924241234,-150.0,0.00014749,2]
[338810979,1726924241244,-150.0,0.0001475,2]
[338810981,1726924241254,-150.0,0.0001475,2]
[338810983,1726924241264,-150.0,0.00014752,2]
[338810985,1726924241273,-150.0,0.00014756,2]
[338810987,1726924241283,-150.0,0.00014756,2]
[338810989,1726924241293,-150.0,0.00014758,2]
[338810991,1726924241304,-150.0,0.00014759,2]
[338810993,1726924241313,-150.0,0.00014764,2]
[338810995,1726924241323,-162.19739489,0.00014767,2]
[338810997,1726924241332,-150.0,0.00014769,2]
[338810999,1726924241342,-150.0,0.0001477,2]
[338811001,1726924241352,-150.0,0.0001477,2]
[338811003,1726924241361,-150.0,0.00014771,2]
[338811005,1726924241371,-150.0,0.00014775,2]